bitfinex/quotes_BTCUSD_20250114
["timestamp","ask_amount","ask_price","bid_price","bid_amount"]
[1736844581422,0.61562244,95841.0,95840.0,1.97754684]
[1736844581660,0.69212244,95841.0,95840.0,1.97754684]
[1736844581928,0.79669268,95841.0,95840.0,1.97754684]
[1736844582071,0.79369268,95841.0,95840.0,1.97754684]
[1736844582279,0.78469268,95841.0,95840.0,1.94154684]
[1736844582503,0.69412244,95841.0,95840.0,1.94254684]
[1736844582732,0.69412244,95841.0,95840.0,1.90222154]
[1736844582944,0.96762886,95841.0,95840.0,1.90222154]
[1736844583229,0.96762886,95841.0,95840.0,1.85218578]
[1736844583230,0.97362886,95841.0,95840.0,1.85218578]
[1736844583438,0.68612244,95841.0,95840.0,1.83618578]
[1736844583632,0.69512244,95841.0,95840.0,1.83718578]
[1736844584071,0.68612244,95841.0,95840.0,1.83607578]
[1736844584774,0.68012244,95841.0,95840.0,1.83507578]
[1736844584935,0.68612244,95841.0,95840.0,1.83507578]
[1736844585144,0.96766171,95841.0,95840.0,1.83507578]
[1736844585341,0.97066171,95841.0,95840.0,1.83507578]
[1736844585743,0.68612244,95841.0,95840.0,1.83507578]
[1736844586144,0.69512244,95841.0,95840.0,1.83507578]
[1736844587307,0.61862244,95841.0,95840.0,1.83507578]
[1736844588839,0.61862244,95841.0,95840.0,1.8368654]
[1736844594175,0.90016171,95841.0,95840.0,1.8368654]
[1736844594787,0.61862244,95841.0,95840.0,1.8368654]
[1736844599526,0.61862244,95841.0,95840.0,1.9173654]
[1736844599722,0.90030479,95841.0,95840.0,1.9173654]
[1736844600697,0.61862244,95841.0,95840.0,1.9173654]
[1736844601094,0.61862244,95841.0,95840.0,1.8368654]
[1736844601743,0.61862244,95841.0,95840.0,1.8362654]
[1736844602001,0.61262244,95841.0,95840.0,1.8362654]
[1736844602205,0.60962244,95841.0,95840.0,1.8362654]
[1736844602566,0.61862244,95841.0,95840.0,1.8362654]
[1736844602775,0.60962244,95841.0,95840.0,1.8362654]
[1736844602977,0.60962244,95841.0,95840.0,1.80768362]
[1736844603178,0.61862244,95841.0,95840.0,1.80768362]
[1736844603370,0.60962244,95841.0,95840.0,1.80768362]
[1736844603778,0.61862244,95841.0,95840.0,1.80768362]
[1736844604338,0.60362244,95841.0,95840.0,1.80768362]
[1736844604498,0.60762244,95841.0,95840.0,1.80768362]
[1736844605130,0.60362244,95841.0,95840.0,1.80768362]
[1736844605329,0.43362244,95841.0,95840.0,1.80768362]
[1736844605546,0.43362244,95841.0,95840.0,1.88818362]
[1736844605749,0.58362244,95841.0,95840.0,1.88818362]
[1736844605897,0.52751253,95841.0,95840.0,1.88818362]
[1736844606332,0.53651253,95841.0,95840.0,1.88818362]
[1736844606534,0.43362244,95841.0,95840.0,1.88818362]
[1736844607016,0.44262244,95841.0,95840.0,1.88818362]
[1736844609209,0.3380522,95841.0,95840.0,1.88818362]
[1736844610195,0.3380522,95841.0,95840.0,1.88768362]
[1736844610853,0.3380522,95841.0,95840.0,1.98768362]
[1736844614827,0.65130044,95841.0,95840.0,1.98768362]
[1736844615447,0.3380522,95841.0,95840.0,1.98768362]
[1736844615822,0.5467302,95841.0,95840.0,1.98768362]
[1736844619121,0.65130044,95841.0,95840.0,1.98768362]
[1736844620573,0.44262244,95841.0,95840.0,1.98768362]
[1736844621013,0.0128522,95841.0,95840.0,2.29636462]
[1736844621184,0.0128522,95841.0,95840.0,2.08768362]
[1736844621386,0.0128522,95841.0,95840.0,1.98768362]
[1736844624236,0.0128522,95841.0,95840.0,2.08768362]
[1736844625082,0.0098522,95841.0,95840.0,1.98768362]
[1736844625643,0.0008522,95841.0,95840.0,1.98768362]
[1736844626045,0.0028522,95841.0,95840.0,1.98768362]
[1736844626253,0.0008522,95841.0,95840.0,1.98768362]
[1736844626734,0.0068522,95841.0,95840.0,1.98768362]
[1736844626929,0.0008522,95841.0,95840.0,1.98768362]
[1736844627250,0.0038522,95841.0,95840.0,2.29636462]
[1736844627657,0.0048522,95841.0,95840.0,2.29636462]
[1736844628192,0.0038522,95841.0,95840.0,2.29636462]
[1736844629209,0.0008522,95841.0,95840.0,2.29636462]
[1736844629415,0.0028522,95841.0,95840.0,2.29636462]
[1736844634247,0.0028522,95841.0,95840.0,2.39636462]
[1736844639214,0.0028522,95841.0,95840.0,2.29636462]
[1736844639433,0.0028522,95841.0,95840.0,2.39636462]
[1736844640479,0.0028522,95841.0,95840.0,2.29636462]
[1736844640686,0.0028522,95841.0,95840.0,2.39636462]
[1736844641087,0.0028522,95841.0,95840.0,2.29636462]
[1736844641291,0.0028522,95841.0,95840.0,2.39636462]
[1736844649077,0.0028522,95841.0,95840.0,2.18768362]
[1736844655269,0.0028522,95841.0,95840.0,1.90718362]
[1736844655671,0.10742244,95841.0,95840.0,1.90718362]
[1736844656305,0.10542244,95841.0,95840.0,1.90718362]
[1736844656659,0.10842244,95841.0,95840.0,1.90718362]
[1736844656900,0.11895384,95841.0,95840.0,1.90718362]
[1736844657119,0.11595384,95841.0,95840.0,1.90718362]
[1736844657272,0.11895384,95841.0,95840.0,1.90718362]
[1736844657867,0.11995384,95841.0,95840.0,1.90718362]
[1736844658299,0.11895384,95841.0,95840.0,1.90718362]
[1736844658701,0.11595384,95841.0,95840.0,1.90718362]
[1736844658926,0.12295384,95841.0,95840.0,1.90718362]
[1736844659330,0.11595384,95841.0,95840.0,1.90718362]
[1736844659572,0.12095384,95841.0,95840.0,1.90718362]
[1736844659970,0.11595384,95841.0,95840.0,1.90718362]
[1736844660197,0.12295384,95841.0,95840.0,1.90718362]
[1736844660624,0.13895384,95841.0,95840.0,1.90718362]
[1736844661764,0.14395384,95841.0,95840.0,1.90718362]
[1736844661977,0.14495384,95841.0,95840.0,1.90718362]
[1736844662470,0.13995384,95841.0,95840.0,1.90718362]
[1736844662996,0.14695384,95841.0,95840.0,1.90718362]
[1736844663169,0.14595384,95841.0,95840.0,1.90718362]
[1736844663375,0.13895384,95841.0,95840.0,1.90718362]
[1736844663516,0.14695384,95841.0,95840.0,1.90718362]
[1736844663920,0.14595384,95841.0,95840.0,1.90718362]
[1736844664367,0.14695384,95841.0,95840.0,1.90718362]
[1736844664923,0.28080382,95841.0,95840.0,1.90718362]
[1736844665155,0.28680382,95841.0,95840.0,1.90718362]
[1736844666434,0.43680382,95841.0,95840.0,1.90718362]
[1736844666631,0.76200382,95841.0,95840.0,1.90718362]
[1736844667079,0.85487908,95841.0,95840.0,1.90718362]
[1736844667549,0.85687908,95841.0,95840.0,1.90718362]
[1736844667866,0.62215384,95841.0,95840.0,1.90718362]
[1736844668062,0.61415384,95841.0,95840.0,1.90718362]
[1736844668365,0.62615384,95841.0,95840.0,1.90718362]
[1736844668767,0.61715384,95841.0,95840.0,1.90718362]
[1736844669126,0.62615384,95841.0,95840.0,1.90718362]
[1736844669351,0.61715384,95841.0,95840.0,1.90718362]
[1736844669652,0.62615384,95841.0,95840.0,1.90718362]
[1736844669988,0.61715384,95841.0,95840.0,1.90718362]
[1736844670414,0.61415384,95841.0,95840.0,1.90718362]
[1736844670838,0.61815384,95841.0,95840.0,1.90718362]
[1736844671197,0.61415384,95841.0,95840.0,1.90718362]
[1736844671437,0.62315384,95841.0,95840.0,1.90718362]
[1736844671778,0.61915384,95841.0,95840.0,1.90718362]
[1736844671971,0.62815384,95841.0,95840.0,1.90718362]
[1736844672164,0.63407384,95841.0,95840.0,1.90718362]
[1736844672786,0.62507384,95841.0,95840.0,1.90718362]
[1736844672990,0.62507384,95841.0,95840.0,1.88541088]
[1736844673209,0.62507384,95841.0,95840.0,1.80980657]
[1736844673210,0.70477384,95841.0,95840.0,1.80980657]
[1736844673424,0.70477384,95841.0,95840.0,1.595868]
[1736844673631,0.70977384,95841.0,95840.0,1.531132]
[1736844673835,0.70977384,95841.0,95840.0,1.50652315]
[1736844674036,0.77194664,95841.0,95840.0,1.50652315]
[1736844674450,0.77694664,95841.0,95840.0,1.50652315]
[1736844674649,0.76794664,95841.0,95840.0,1.50652315]
[1736844674864,0.76294664,95841.0,95840.0,1.50652315]
[1736844675064,0.77194664,95841.0,95840.0,1.50652315]
[1736844675423,0.76894664,95841.0,95840.0,1.47895315]
[1736844675653,0.71077384,95841.0,95840.0,1.47895315]
[1736844675844,0.70177384,95841.0,95840.0,1.45395315]
[1736844676056,0.70177384,95841.0,95840.0,1.42625315]
[1736844676207,0.71077384,95841.0,95840.0,1.42625315]
[1736844676411,0.69577384,95841.0,95840.0,1.42625315]
[1736844676799,0.80734408,95841.0,95840.0,1.42625315]
[1736844677045,0.80734408,95841.0,95840.0,1.21993115]
[1736844677249,0.69577384,95841.0,95840.0,1.21993115]
[1736844677680,0.70277384,95841.0,95840.0,1.21993115]
[1736844677890,0.71177384,95841.0,95840.0,1.21993115]
[1736844678087,0.69577384,95841.0,95840.0,1.19124115]
[1736844678301,0.69577384,95841.0,95840.0,1.13162115]
[1736844678502,0.71177384,95841.0,95840.0,1.13162115]
[1736844678923,0.94592226,95841.0,95840.0,1.13162115]
[1736844679231,0.94592226,95841.0,95840.0,1.10248197]
[1736844679652,0.81634408,95841.0,95840.0,1.10248197]
[1736844679854,0.71177384,95841.0,95840.0,1.10248197]
[1736844681282,0.94584187,95841.0,95840.0,1.10248197]
[1736844682141,0.71177384,95841.0,95840.0,1.10248197]
[1736844682788,0.71177384,95841.0,95840.0,1.07348197]
[1736844683185,0.81634408,95841.0,95840.0,1.07348197]
[1736844683505,0.71177384,95841.0,95840.0,1.07348197]
[1736844684213,0.70477384,95841.0,95840.0,1.07348197]
[1736844684631,0.70477384,95841.0,95840.0,1.04624197]
[1736844684632,0.71177384,95841.0,95840.0,1.04624197]
[1736844684833,0.70277384,95841.0,95840.0,1.04624197]
[1736844685040,0.80212141,95841.0,95840.0,1.04624197]
[1736844685237,0.71177384,95841.0,95840.0,1.04624197]
[1736844685458,0.69577384,95841.0,95840.0,1.04624197]
[1736844685667,0.70477384,95841.0,95840.0,1.04624197]
[1736844686623,0.70477384,95841.0,95840.0,1.01917197]
[1736844686899,0.71177384,95841.0,95840.0,1.01917197]
[1736844687193,0.70477384,95841.0,95840.0,1.01917197]
[1736844687408,0.69577384,95841.0,95840.0,1.01917197]
[1736844687625,0.70277384,95841.0,95840.0,0.99952197]
[1736844687807,0.71177384,95841.0,95840.0,0.99952197]
[1736844687941,0.70277384,95841.0,95840.0,0.93889197]
[1736844688155,0.80734408,95841.0,95840.0,0.91935631]
[1736844688373,0.70277384,95841.0,95840.0,0.90889826]
[1736844688575,0.70477384,95841.0,95840.0,0.80455826]
[1736844688773,0.93884187,95841.0,95840.0,0.76655826]
[1736844688984,0.93884187,95841.0,95840.0,0.33266388]
[1736844689187,2.34704187,95841.0,95840.0,0.26486275]
[1736844689389,2.45161211,95841.0,95840.0,0.19147028]
[1736844689610,2.30335182,95841.0,95840.0,0.076752]
[1736844689813,0.173,95840.0,95834.0,4.9e-07]
[1736844690014,0.56486224,95835.0,95834.0,4.9e-07]
[1736844690455,0.61016224,95835.0,95834.0,4.9e-07]
[1736844690609,0.358753,95807.0,95799.0,0.00179046]
[1736844690819,0.48632324,95807.0,95799.0,0.00179046]
[1736844691017,0.49224324,95807.0,95799.0,0.00179046]
[1736844691842,0.49229165,95807.0,95799.0,0.00179046]
[1736844692104,0.50629165,95807.0,95799.0,0.00179046]
[1736844692279,0.51811979,95807.0,95799.0,0.00179046]
[1736844693356,0.51311979,95807.0,95799.0,0.00179046]
[1736844693559,0.52343538,95807.0,95799.0,0.00179046]
[1736844693783,0.53643538,95807.0,95799.0,0.00179046]
[1736844695218,0.86163538,95807.0,95799.0,0.00179046]
[1736844698360,0.85763538,95807.0,95799.0,0.00179046]
[1736844698720,0.84863538,95807.0,95799.0,0.00179046]
[1736844699017,0.85763538,95807.0,95799.0,0.00179046]
[1736844700222,0.84863538,95807.0,95799.0,0.00179046]
[1736844700422,0.85363538,95807.0,95799.0,0.00179046]
[1736844700623,0.86263538,95807.0,95799.0,0.00179046]
[1736844700780,0.85863538,95807.0,95799.0,0.00179046]
[1736844700989,0.86363538,95807.0,95799.0,0.00179046]
[1736844701204,0.86671538,95807.0,95799.0,0.00179046]
[1736844701482,0.86671538,95807.0,95806.0,0.12969025]
[1736844701483,0.46413424,95807.0,95806.0,0.12969025]
[1736844701681,0.34924841,95807.0,95806.0,0.22969025]
[1736844702081,0.34424841,95807.0,95806.0,0.22969025]
[1736844702355,0.33424841,95807.0,95806.0,0.22969025]
[1736844703280,0.32524841,95807.0,95806.0,0.22969025]
[1736844703485,0.33024841,95807.0,95806.0,0.22969025]
[1736844703700,0.33724841,95807.0,95806.0,0.22969025]
[1736844704141,0.32524841,95807.0,95806.0,0.22969025]
[1736844704342,0.33224841,95807.0,95806.0,0.22969025]
[1736844706820,0.33224841,95807.0,95806.0,0.32969025]
[1736844707324,0.00704841,95807.0,95806.0,0.32969025]
[1736844707957,0.00704841,95807.0,95806.0,0.32919025]
[1736844712938,0.00704841,95807.0,95806.0,0.33511025]
[1736844713154,0.09358972,95833.0,95832.0,0.332798]
[1736844713339,0.09363816,95833.0,95832.0,0.432798]
[1736844714035,4.844e-05,95833.0,95832.0,0.432798]
[1736844714242,0.00204844,95833.0,95832.0,0.432798]
[1736844714410,0.01104844,95833.0,95832.0,0.432798]
[1736844716606,0.01104844,95833.0,95832.0,0.532798]
[1736844718034,0.01104844,95833.0,95832.0,0.531798]
[1736844719858,0.00204844,95833.0,95832.0,0.531798]
[1736844719979,0.00204844,95833.0,95832.0,0.533798]
[1736844720176,4.844e-05,95833.0,95832.0,0.533798]
[1736844720381,0.00204844,95833.0,95832.0,0.533798]
[1736844720993,4.844e-05,95833.0,95832.0,0.533798]
[1736844727006,4.844e-05,95833.0,95832.0,0.53558993]
[1736844727413,0.00090174,95833.0,95832.0,0.53558993]
[1736844736108,0.00090174,95833.0,95832.0,0.54150993]
[1736844737624,0.00090174,95833.0,95832.0,0.53558993]
[1736844738028,0.00090174,95833.0,95832.0,0.54150993]
[1736844739599,0.00090174,95833.0,95832.0,0.53558993]
[1736844741391,0.00090174,95833.0,95832.0,0.39098993]
[1736844741620,0.00090174,95833.0,95832.0,0.10379193]
[1736844742175,0.00090174,95833.0,95832.0,0.31248993]
[1736844742475,0.00090174,95833.0,95832.0,0.41248993]
[1736844742630,0.00090174,95833.0,95832.0,0.31248993]
[1736844742830,0.00090174,95833.0,95832.0,0.41248993]
[1736844743091,0.00090174,95833.0,95832.0,0.31048993]
[1736844743290,0.00090174,95833.0,95832.0,0.41048993]
[1736844743621,0.00090174,95833.0,95832.0,0.31048993]
[1736844744284,0.00090174,95833.0,95832.0,0.41048993]
[1736844745419,0.00090174,95833.0,95832.0,0.10179193]
[1736844745622,0.00090174,95833.0,95832.0,0.31048993]
[1736844746329,0.00090174,95833.0,95832.0,0.30948993]
[1736844747686,0.00090174,95833.0,95832.0,0.40948993]
[1736844748230,0.00190174,95833.0,95832.0,0.40948993]
[1736844748450,0.00090174,95833.0,95832.0,0.00079193]
[1736844748879,0.00190174,95833.0,95832.0,0.00079193]
[1736844750211,0.00090174,95833.0,95832.0,0.00079193]
[1736844750425,0.00090174,95833.0,95832.0,0.10079193]
[1736844750970,0.00190174,95833.0,95832.0,0.10079193]
[1736844751177,0.00090174,95833.0,95832.0,0.10079193]
[1736844751400,0.10547198,95833.0,95832.0,0.10079193]
[1736844751602,0.12947198,95833.0,95832.0,0.00079193]
[1736844752569,0.01025256,95838.0,95832.0,0.00079193]
[1736844752570,0.01548972,95846.0,95845.0,0.3]
[1736844752788,0.23397431,95848.0,95847.0,0.55]
[1736844752999,0.0508522,95850.0,95849.0,0.45]
[1736844753232,0.08042575,95864.0,95863.0,0.55]
[1736844753467,0.14058031,95887.0,95884.0,0.4]
[1736844753729,0.14473269,95890.0,95889.0,0.55]
[1736844753922,0.34505935,95900.0,95899.0,0.758552]
[1736844754126,0.29360782,95900.0,95899.0,1.01195024]
[1736844754325,0.00746101,95900.0,95899.0,2.73636124]
[1736844754501,0.00746101,95900.0,95899.0,2.54087024]
[1736844754502,0.00660821,95900.0,95899.0,2.54087024]
[1736844754836,1e-08,95902.0,95901.0,0.4]
[1736844755069,3.8e-07,95902.0,95901.0,0.76457024]
[1736844755275,0.0099775,95930.0,95929.0,0.408487]
[1736844755482,0.0008533,95996.0,95953.0,0.1]
[1736844755483,0.12562052,95960.0,95953.0,0.1]
[1736844755689,0.208424,95958.0,95946.0,0.1]
[1736844755828,0.00014528,95949.0,95946.0,0.1]
[1736844756298,0.00014528,95949.0,95940.0,0.30043113]
[1736844756299,5.315e-05,95949.0,95941.0,0.1]
[1736844756513,0.0487,95947.0,95941.0,0.1]
[1736844756671,0.208459,95942.0,95937.0,0.09196813]
[1736844756871,0.10457024,95946.0,95932.0,0.1]
[1736844757176,0.12562052,95942.0,95932.0,0.1]
[1736844757409,0.208452,95945.0,95933.0,0.1]
[1736844757701,0.023,95943.0,95929.0,0.1]
[1736844757904,0.023,95943.0,95924.0,0.09196813]
[1736844757905,0.208479,95933.0,95924.0,0.09196813]
[1736844758115,0.12562052,95931.0,95924.0,0.09196813]
[1736844758320,0.12562052,95940.0,95930.0,0.2]
[1736844758492,0.208478,95934.0,95932.0,0.001]
[1736844758695,0.208478,95934.0,95924.0,0.1]
[1736844758696,0.10457024,95933.0,95924.0,0.1]
[1736844758877,0.285865,95939.0,95929.0,0.1]
[1736844759093,0.20849,95928.0,95922.0,0.1]
[1736844759276,0.12562052,95931.0,95923.0,0.1]
[1736844759480,0.12562052,95931.0,95924.0,0.1]
[1736844759695,0.0774,95939.0,95932.0,0.001]
[1736844759696,0.231478,95933.0,95932.0,0.001]
[1736844759892,0.48604824,95933.0,95932.0,0.001]
[1736844760091,0.208483,95931.0,95921.0,0.1]
[1736844760313,0.10457024,95930.0,95923.0,0.001]
[1736844760520,0.0774,95939.0,95923.0,0.001]
[1736844760521,0.2274,95939.0,95935.0,0.1]
[1736844760975,0.208467,95938.0,95931.0,0.1]
[1736844761178,0.208467,95938.0,95925.0,0.1]
[1736844761179,0.15,95937.0,95927.0,0.1]
[1736844761393,0.208472,95936.0,95931.0,0.1]
[1736844761981,0.416944,95936.0,95927.0,0.1]
[1736844762311,0.208472,95936.0,95927.0,0.1]
[1736844762451,0.208487,95930.0,95927.0,0.1]
[1736844762654,0.208487,95930.0,95923.0,0.1]
[1736844762655,0.416974,95930.0,95923.0,0.1]
[1736844762860,0.208487,95930.0,95927.0,0.1]
[1736844763071,0.15,95934.0,95927.0,0.1]
[1736844763285,0.25457024,95934.0,95927.0,0.1]
[1736844763480,0.25457024,95934.0,95923.0,0.1]
[1736844763481,0.15,95934.0,95933.0,0.1]
[1736844763718,0.358478,95934.0,95933.0,0.1]
[1736844763926,0.358478,95934.0,95930.0,0.1]
[1736844764160,0.359478,95934.0,95930.0,0.1]
[1736844764548,0.358478,95934.0,95930.0,0.1]
[1736844764771,0.359478,95934.0,95930.0,0.1]
[1736844764988,0.209478,95934.0,95930.0,0.1]
[1736844765208,0.208478,95934.0,95930.0,0.1]
[1736844765343,0.209478,95934.0,95930.0,0.1]
[1736844765765,0.001,95934.0,95930.0,0.1]
[1736844765974,0.001,95934.0,95933.0,0.201]
[1736844766383,0.001,95934.0,95933.0,0.20104222]
[1736844766583,0.001,95934.0,95933.0,0.2]
[1736844766761,0.001,95934.0,95932.0,0.1379522]
[1736844766980,0.208478,95933.0,95932.0,0.2379522]
[1736844767266,0.208478,95933.0,95930.0,0.001]
[1736844767267,0.52152624,95933.0,95930.0,0.001]
[1736844767466,0.208483,95931.0,95930.0,0.001]
[1736844767663,0.001,95934.0,95928.0,0.1]
[1736844767894,0.208489,95929.0,95926.0,0.1]
[1736844768097,0.208489,95929.0,95927.0,0.1]
[1736844768298,0.208489,95929.0,95928.0,0.1]
[1736844768554,0.208489,95929.0,95925.0,0.2]
[1736844768862,0.208489,95929.0,95925.0,0.1]
[1736844769063,0.208489,95929.0,95924.0,0.1]
[1736844769277,0.416977,95929.0,95924.0,0.1]
[1736844769469,0.416977,95929.0,95925.0,0.1]
[1736844769672,0.416977,95929.0,95925.0,0.099]
[1736844769874,0.416977,95929.0,95925.0,0.101]
[1736844770080,0.208488,95929.0,95925.0,0.101]
[1736844770813,0.358494,95926.0,95925.0,0.002]
[1736844771801,0.358494,95926.0,95925.0,0.004]
[1736844772009,0.358494,95926.0,95925.0,0.002]
[1736844772204,0.208494,95926.0,95923.0,0.1]
[1736844772364,0.208494,95926.0,95925.0,0.005]
[1736844772980,0.208494,95926.0,95925.0,0.003]
[1736844774509,0.208494,95926.0,95924.0,0.099]
[1736844774710,0.208494,95926.0,95925.0,0.003]
[1736844775142,0.208496,95925.0,95922.0,0.1]
[1736844775481,0.208496,95925.0,95924.0,0.099]
[1736844775881,0.208496,95925.0,95921.0,0.00178962]
[1736844776083,0.208499,95924.0,95921.0,0.00178962]
[1736844776285,0.416998,95924.0,95921.0,0.00178962]
[1736844776522,0.208502,95922.0,95921.0,0.00178962]
[1736844776708,0.208499,95924.0,95921.0,0.00178962]
[1736844777318,0.416998,95924.0,95922.0,0.003]
[1736844777493,0.416998,95924.0,95921.0,0.00178962]
[1736844777911,0.416998,95924.0,95921.0,0.00478962]
[1736844778145,0.208487,95929.0,95926.0,0.1]
[1736844778326,0.078253,95943.0,95939.0,0.1]
[1736844778482,0.078253,95943.0,95942.0,0.1]
[1736844779324,0.208471,95937.0,95936.0,0.1]
[1736844779531,0.208461,95941.0,95939.0,0.1]
[1736844780856,0.208461,95941.0,95923.0,0.09147205]
[1736844780857,0.079253,95943.0,95942.0,0.1]
[1736844781067,0.079253,95943.0,95937.0,0.099]
[1736844781068,0.079253,95943.0,95937.0,0.199]
[1736844781291,0.004,95941.0,95938.0,0.1]
[1736844781872,0.005,95941.0,95939.0,0.002]
[1736844782425,0.004,95941.0,95939.0,0.002]
[1736844783118,0.28671,95943.0,95938.0,0.1]
[1736844783648,0.28671,95943.0,95939.0,0.001]
[1736844784203,0.495168,95943.0,95939.0,0.001]
[1736844784411,0.078253,95943.0,95939.0,0.002]
[1736844784691,0.208459,95942.0,95939.0,0.002]
[1736844784888,0.208459,95942.0,95938.0,0.1]
[1736844784889,0.078253,95943.0,95938.0,0.1]
[1736844785097,0.208459,95942.0,95938.0,0.101]
[1736844785271,0.078253,95943.0,95938.0,0.101]
[1736844785673,0.078253,95943.0,95938.0,0.1]
[1736844785884,0.078253,95943.0,95939.0,0.001]
[1736844786295,0.31303024,95942.0,95939.0,0.001]
[1736844786494,0.31303024,95942.0,95935.0,0.099]
[1736844786495,0.208472,95936.0,95935.0,0.099]
[1736844787289,0.208482,95932.0,95930.0,0.00178962]
[1736844787891,0.31305224,95932.0,95930.0,0.00178962]
[1736844788102,0.31295224,95932.0,95930.0,0.00178962]
[1736844788310,0.10457024,95931.0,95930.0,0.00178962]
[1736844788940,0.27757024,95931.0,95930.0,0.00178962]
[1736844789352,0.32667024,95931.0,95930.0,0.00278962]
[1736844789648,0.41761239,95931.0,95930.0,0.00178962]
[1736844790021,0.173,95930.0,95921.0,0.00178962]
[1736844790231,0.381502,95922.0,95921.0,0.00178962]
[1736844790474,0.48607224,95922.0,95921.0,0.00178962]
[1736844791223,0.48607224,95922.0,95921.0,0.00278962]
[1736844791465,0.48607224,95922.0,95921.0,0.00178962]
[1736844792346,0.48807224,95922.0,95921.0,0.00178962]
[1736844792963,0.48607224,95922.0,95921.0,0.00178962]
[1736844793175,0.48807224,95922.0,95921.0,0.00178962]
[1736844793370,0.49507224,95922.0,95921.0,0.00278962]
[1736844793712,0.49507224,95922.0,95921.0,0.00178962]
[1736844793713,0.56827224,95922.0,95921.0,0.00178962]
[1736844793942,0.56827224,95922.0,95921.0,0.00278962]
[1736844794122,0.57627224,95922.0,95921.0,0.00278962]
[1736844794749,0.90147224,95922.0,95921.0,0.00278962]
[1736844794906,0.94837224,95922.0,95921.0,0.00278962]
[1736844796125,0.94837224,95922.0,95892.0,0.09147205]
[1736844796126,0.208565,95893.0,95892.0,0.09147205]
[1736844796326,0.20726311,95893.0,95892.0,0.09147205]
[1736844796537,0.208576,95888.0,95886.0,0.19147205]
[1736844796881,0.208576,95888.0,95886.0,0.29047205]
[1736844797036,0.208576,95888.0,95887.0,0.099]
[1736844797237,0.0469,95892.0,95887.0,0.00048437]
[1736844797439,0.208576,95888.0,95887.0,0.00048437]
[1736844797643,0.31314624,95888.0,95887.0,0.00048437]
[1736844798661,0.31314624,95888.0,95887.0,0.00248437]
[1736844799806,0.31414624,95888.0,95887.0,0.00748437]
[1736844800032,0.31414624,95888.0,95887.0,0.00248437]
[1736844800033,0.31314624,95888.0,95887.0,0.00248437]
[1736844800367,0.31314624,95888.0,95887.0,0.00348437]
[1736844804021,0.31314624,95888.0,95887.0,0.00148437]
[1736844804207,0.31314624,95888.0,95887.0,0.00048437]
[1736844804409,0.31314624,95888.0,95887.0,0.00248437]
[1736844805145,0.31314624,95888.0,95887.0,0.00048437]
[1736844805324,0.31314624,95888.0,95887.0,0.00148437]
[1736844806355,0.31414624,95888.0,95887.0,0.00148437]
[1736844807280,0.46414624,95888.0,95887.0,0.00148437]
[1736844807475,0.64009495,95888.0,95887.0,0.00148437]
[1736844807677,0.54324624,95888.0,95887.0,0.00148437]
[1736844808072,0.54224624,95888.0,95887.0,0.00327504]
[1736844808269,0.54224624,95888.0,95887.0,0.00227504]
[1736844808712,0.54324624,95888.0,95887.0,0.00227504]
[1736844809073,0.56624624,95888.0,95887.0,0.00227504]
[1736844809268,0.208655,95852.0,95851.0,0.1]
[1736844809486,0.208648,95856.0,95851.0,0.1]
[1736844809691,0.208647,95856.0,95851.0,0.1]
[1736844809942,0.208647,95856.0,95855.0,0.099]
[1736844810640,0.208647,95856.0,95855.0,0.09909213]
[1736844811419,0.208647,95856.0,95855.0,0.10009213]
[1736844811619,0.208647,95856.0,95855.0,0.10209213]
[1736844812418,0.208647,95856.0,95855.0,0.00309213]
[1736844814337,0.208647,95856.0,95855.0,0.00209213]
[1736844814642,0.208647,95856.0,95855.0,9.213e-05]
[1736844814823,0.31321724,95856.0,95855.0,0.00209213]
[1736844815227,0.31321724,95856.0,95855.0,9.213e-05]
[1736844815641,0.31321724,95856.0,95855.0,0.00209213]
[1736844818299,0.03,95857.0,95856.0,0.199]
[1736844818480,0.0818,95872.0,95864.0,0.099]
[1736844818652,0.31318324,95871.0,95864.0,0.098]
[1736844819210,0.52179624,95871.0,95864.0,0.098]
[1736844819357,0.208624,95867.0,95864.0,0.098]
[1736844819562,0.10457024,95866.0,95864.0,0.098]
[1736844819753,0.208626,95865.0,95859.0,0.098]
[1736844819961,0.208628,95864.0,95860.0,0.098]
[1736844820158,0.208628,95864.0,95855.0,9.213e-05]
[1736844820159,0.10457024,95864.0,95855.0,9.213e-05]
[1736844820366,0.208631,95863.0,95859.0,0.098]
[1736844820569,0.208635,95861.0,95856.0,0.001]
[1736844820803,0.20862,95868.0,95856.0,0.001]
[1736844820804,0.10457024,95860.0,95856.0,0.001]
[1736844821188,0.10457024,95860.0,95855.0,0.0018828]
[1736844821189,0.20864,95859.0,95855.0,0.0018828]
[1736844821381,0.208644,95857.0,95855.0,0.0018828]
[1736844821583,0.10457024,95856.0,95855.0,0.0018828]
[1736844821789,0.38307024,95856.0,95855.0,0.0008828]
[1736844822686,0.38507024,95856.0,95855.0,0.0008828]
[1736844823556,0.40807024,95856.0,95855.0,0.0008828]
[1736844823787,0.41207024,95856.0,95855.0,0.0008828]
[1736844823930,0.40807024,95856.0,95855.0,0.0008828]
[1736844824335,0.41607024,95856.0,95855.0,0.0008828]
[1736844824543,0.440492,95835.0,95832.0,0.00079193]
[1736844824797,0.54506224,95835.0,95834.0,0.00183809]
[1736844825136,0.54506224,95835.0,95834.0,0.00083809]
[1736844825865,0.59176224,95835.0,95834.0,0.00083809]
[1736844826673,0.15916191,95834.0,95832.0,0.00079193]
[1736844826873,0.31326624,95833.0,95832.0,0.00079193]
[1736844828144,0.208711,95826.0,95825.0,0.00178962]
[1736844828379,0.41808124,95826.0,95825.0,0.00178962]
[1736844828760,0.56808124,95826.0,95825.0,0.00178962]
[1736844829138,0.61678124,95826.0,95825.0,0.00178962]
[1736844829345,0.337253,95807.0,95806.0,0.00129025]
[1736844829542,0.44182324,95807.0,95806.0,0.00133869]
[1736844830521,0.44282324,95807.0,95806.0,0.00133869]
[1736844830651,0.44700524,95807.0,95806.0,0.00133869]
[1736844830852,0.44600524,95807.0,95806.0,0.00133869]
[1736844831239,0.45095075,95807.0,95806.0,0.00133869]
[1736844831801,0.45195075,95807.0,95806.0,0.00133869]
[1736844832564,0.44695075,95807.0,95806.0,0.00133869]
[1736844832771,0.45395075,95807.0,95806.0,0.00133869]
[1736844833990,0.46768187,95807.0,95806.0,0.00133869]
[1736844834229,0.47668187,95807.0,95806.0,0.00133869]
[1736844834346,0.45968187,95807.0,95806.0,0.00133869]
[1736844835001,0.4801959,95807.0,95806.0,0.00133869]
[1736844835820,0.46868187,95807.0,95806.0,0.00133869]